fUST/lending_fUST_20251011
["ID","MTS","AMOUNT","RATE_DAILY","PERIOD"]
[390819599,1760171451451,-60785.21317976,0.000285,7]
[390819600,1760171451460,-1102.6742955,0.00028516,5]
[390819601,1760171451469,-300.514664,0.00028529,9]
[390819602,1760171451479,-216.44997,0.00028529,9]
[390819603,1760171451492,-150.76,0.00028587,15]
[390819604,1760171451502,-292.77,0.0002859,10]
[390819605,1760171451511,-6720.22177492,0.00028603,2]
[390819606,1760171451520,-1467.52862761,0.00028612,5]
[390819607,1760171451531,-174.756,0.00028639,2]
[390819608,1760171451541,-300.514664,0.00028664,10]
[390819609,1760171451552,-216.44997,0.00028664,10]
[390819610,1760171451563,-150.76,0.00028687,15]
[390819611,1760171451573,-980.23029695,0.0002876,2]
[390819612,1760171451583,-5757.23903697,0.00028763,18]
[390819613,1760171451592,-500.0,0.00028767,60]
[390819614,1760171451601,-500.0,0.00028767,60]
[390819615,1760171451610,-500.0,0.00028767,60]
[390819616,1760171451621,-500.0,0.00028767,60]
[390819617,1760171451631,-500.0,0.00028767,60]
[390819618,1760171451641,-500.0,0.00028767,60]
[390819619,1760171451651,-500.0,0.00028767,60]
[390819620,1760171451660,-500.0,0.00028767,60]
[390819621,1760171451672,-500.0,0.00028767,60]
[390819622,1760171451682,-500.0,0.00028767,60]
[390819623,1760171451691,-500.0,0.00028767,60]
[390819624,1760171451701,-500.0,0.00028767,60]
[390819625,1760171451709,-500.0,0.00028767,60]
[390819626,1760171451719,-500.0,0.00028767,60]
[390819627,1760171451728,-500.0,0.00028767,60]
[390819628,1760171451737,-500.0,0.00028767,60]
[390819629,1760171451747,-500.0,0.00028767,60]
[390819630,1760171451756,-500.0,0.00028767,60]
[390819631,1760171451766,-500.0,0.00028767,60]
[390819632,1760171451775,-500.0,0.00028767,60]
[390819633,1760171451785,-500.0,0.00028767,60]
[390819634,1760171451795,-500.0,0.00028767,60]
[390819635,1760171451805,-242.46144144,0.00028767,60]
[390819636,1760171451816,-500.0,0.00028773,5]
[390819637,1760171451825,-150.76,0.00028787,15]
[390819638,1760171451835,-500.0,0.0002879,5]
[390819639,1760171451845,-1125.15728337,0.00028827,2]
[390819640,1760171451855,-6720.22177492,0.00028864,2]
[390819641,1760171451865,-150.76,0.00028887,15]
[390819642,1760171451875,-204.51,0.000289,4]
[390819643,1760171451884,-220.56,0.000289,4]
[390819644,1760171451893,-337.76775891,0.00028921,5]
[390819645,1760171451903,-150.76,0.00028987,15]
[390819646,1760171451912,-2201.74723435,0.0002899,2]
[390819647,1760171451924,-1050.29,0.00029,2]
[390819648,1760171451935,-1784883.7288742,0.00029,120]
[390819649,1760171451944,-2609.37557469,0.00029,7]
[390819650,1760171451954,-2609.37557469,0.00029,120]
[390819651,1760171451963,-151.0,0.00029,30]
[390819652,1760171451973,-151.0,0.00029,30]
[390819653,1760171451982,-151.0,0.00029,30]
[390819654,1760171451991,-600.0,0.00029016,5]
[390819655,1760171452000,-187.54162087,0.00029016,5]
[390819656,1760171452010,-450.0,0.00029016,5]
[390819657,1760171452019,-2000.0,0.00029016,5]
[390819658,1760171452028,-200.0,0.00029054,120]
[390819659,1760171452037,-150.76,0.00029087,15]
[390819660,1760171452046,-200.0,0.000291,120]
[390819661,1760171452055,-6720.22177492,0.00029126,2]
[390819662,1760171452065,-151.0,0.00029163,15]
[390819663,1760171452075,-151.0,0.00029163,30]
[390819664,1760171452084,-200.0,0.00029172,120]
[390819665,1760171452094,-1050.29,0.00029174,2]
[390819666,1760171452103,-150.76,0.00029187,15]
[390819667,1760171452112,-1259.21610594,0.00029242,2]
[390819668,1760171452121,-150.76,0.00029287,15]
[390819669,1760171452131,-300.514664,0.00029309,10]
[390819670,1760171452141,-216.44997,0.00029309,10]
[390819671,1760171452150,-8033.5,0.00029315,8]
[390819672,1760171452159,-1000.0,0.00029321,5]
[390819673,1760171452168,-200.0,0.00029332,120]
[390819674,1760171452179,-1050.29,0.00029348,2]
[390819675,1760171452189,-11663.37,0.00029387,11]
[390819676,1760171452198,-20386.48,0.00029387,11]
[390819677,1760171452208,-150.76,0.00029387,15]
[390819678,1760171452217,-6720.22177492,0.00029387,2]
[390819679,1760171452227,-12742.21,0.000294,2]
[390819680,1760171452238,-908.13730375,0.00029422,24]
[390819681,1760171452246,-200.0,0.00029432,120]
[390819682,1760171452256,-200.0,0.00029446,120]
[390819683,1760171452265,-300.0402692,0.0002947,20]
[390819684,1760171452275,-300.514664,0.00029473,5]
[390819685,1760171452284,-216.44997,0.00029473,5]
[390819686,1760171452293,-150.76,0.00029487,15]
[390819687,1760171452303,-6012.61,0.000295,2]
[390819688,1760171452313,-1501.916373,0.000295,2]
[390819689,1760171452323,-1050.29,0.00029522,2]
[390819690,1760171452331,-1259.21610595,0.00029524,2]
[390819691,1760171452340,-300.514664,0.00029531,5]
[390819692,1760171452350,-216.44997,0.00029531,5]
[390819693,1760171452359,-750.0,0.00029564,5]
[390819694,1760171452393,-550.0,0.00029564,5]
[390819695,1760171452402,-2500.0,0.00029564,5]
[390819696,1760171452412,-150.76,0.00029587,15]
[390819697,1760171452453,-300.514664,0.0002959,5]
[390819698,1760171452463,-216.44997,0.0002959,5]
[390819699,1760171452473,-250.0,0.000296,10]
[390819700,1760171452484,-12028.99345882,0.00029643,2]
[390819701,1760171452494,-186.572929,0.00029648,30]
[390819702,1760171452503,-186.572929,0.00029648,30]
[390819703,1760171452512,-186.572929,0.00029648,30]
[390819704,1760171452521,-186.572929,0.00029648,30]
[390819705,1760171452531,-151.0,0.00029648,30]
[390819706,1760171452540,-167.502241,0.00029648,30]
[390819707,1760171452549,-300.514664,0.00029648,5]
[390819708,1760171452560,-216.44997,0.00029648,5]
[390819709,1760171452569,-6720.22177492,0.00029648,2]
[390819710,1760171452578,-292364.78334588,0.0002965,7]
[390819711,1760171452679,-66941.61355412,0.0002965,7]
[390819712,1760171452689,-300.66151183,0.0002965,2]
[390819713,1760171452698,-300.514664,0.00029675,30]
[390819714,1760171452708,-216.44997,0.00029675,30]
[390819715,1760171452718,-300.514664,0.00029682,20]
[390819716,1760171452727,-216.44997,0.00029682,20]
[390819717,1760171452736,-150.76,0.00029687,15]
[390819718,1760171452745,-1050.29,0.00029696,2]
[390819719,1760171452756,-300.514664,0.00029696,30]
[390819720,1760171452766,-216.44997,0.00029696,30]
[390819721,1760171452775,-160.0,0.00029698,3]
[390819722,1760171452784,-277.37209656,0.00029698,5]
[390819723,1760171452793,-250.0,0.000297,10]
[390819724,1760171452803,-300.514664,0.00029705,32]
[390819725,1760171452812,-216.44997,0.00029705,32]
[390819726,1760171452822,-300.514664,0.00029706,5]
[390819727,1760171452831,-216.44997,0.00029706,5]
[390819728,1760171452840,-300.514664,0.0002971,20]
[390819729,1760171452849,-216.44997,0.0002971,20]
[390819730,1760171452859,-300.514664,0.00029718,30]
[390819731,1760171452868,-216.44997,0.00029718,30]
[390819732,1760171452878,-151.0,0.00029726,30]
[390819733,1760171452887,-300.514664,0.00029729,32]
[390819734,1760171452896,-216.44997,0.00029729,32]
[390819735,1760171452905,-300.514664,0.00029737,20]
[390819736,1760171452914,-216.44997,0.00029737,20]
[390819737,1760171452926,-300.514664,0.00029739,30]
[390819738,1760171452935,-216.44997,0.00029739,30]
[390819739,1760171452944,-186.572929,0.00029748,30]
[390819740,1760171452954,-186.572929,0.00029748,30]
[390819741,1760171452963,-186.572929,0.00029748,30]
[390819742,1760171452973,-186.572929,0.00029748,30]
[390819743,1760171452982,-186.572929,0.00029748,30]
[390819744,1760171452991,-186.572929,0.00029748,30]
[390819745,1760171453000,-186.572929,0.00029748,30]
[390819746,1760171453010,-186.572929,0.00029748,30]
[390819747,1760171453019,-186.572929,0.00029748,30]
[390819748,1760171453029,-186.572929,0.00029748,30]
[390819749,1760171453038,-186.572929,0.00029748,30]
[390819750,1760171453047,-186.572929,0.00029748,30]
[390819751,1760171453056,-186.572929,0.00029748,30]
[390819752,1760171453065,-186.572929,0.00029748,30]
[390819753,1760171453075,-186.572929,0.00029748,30]
[390819754,1760171453084,-186.572927,0.00029748,30]
[390819755,1760171453094,-151.0,0.00029748,30]
[390819756,1760171453103,-151.0,0.00029748,30]
[390819757,1760171453112,-151.0,0.00029748,30]
[390819758,1760171453122,-151.0,0.00029748,30]
[390819759,1760171453131,-151.0,0.00029748,30]
[390819760,1760171453141,-151.0,0.00029748,30]
[390819761,1760171453151,-151.0,0.00029748,30]
[390819762,1760171453161,-151.0,0.00029748,30]
[390819763,1760171453173,-151.0,0.00029748,30]
[390819764,1760171453183,-151.0,0.00029748,30]
[390819765,1760171453193,-151.0,0.00029748,30]
[390819766,1760171453203,-151.0,0.00029748,30]
[390819767,1760171453214,-151.0,0.00029748,30]
[390819768,1760171453223,-151.0,0.00029748,30]
[390819769,1760171453233,-240.571245,0.00029748,30]
[390819770,1760171453243,-151.0,0.00029748,30]
[390819771,1760171453253,-151.0,0.00029748,30]
[390819772,1760171453263,-168.909806,0.00029748,30]
[390819773,1760171453272,-178.536086,0.00029748,30]
[390819774,1760171453282,-151.0,0.00029748,30]
[390819775,1760171453292,-151.0,0.00029748,30]
[390819776,1760171453303,-151.0,0.00029748,30]
[390819777,1760171453313,-151.0,0.00029748,30]
[390819778,1760171453323,-588706.76240136,0.0002975,20]
[390819779,1760171456546,-1686.08438357,0.0002975,20]
[390819780,1760171456558,-272.81267215,0.0002975,20]
[390819781,1760171456957,-0.00425765,0.00027397,9]
[390819782,1760171456968,-1358.58574235,0.00027397,9]
[390819783,1760171456978,-500.0,0.00027397,9]
[390819784,1760171456987,-500.0,0.00027397,9]
[390819785,1760171456998,-1358.59,0.00027397,9]
[390819786,1760171457007,-170.92171279,0.00027397,7]
[390819787,1760171457021,-72.13755521,0.00027397,7]
[390819788,1760171457031,-1358.65862826,0.00027397,9]
[390819789,1760171457042,-500.0,0.00027397,9]
[390819790,1760171457051,-457.21148808,0.00027397,9]
[390819791,1760171457060,-6098.94763774,0.0002975,20]
[390819792,1760171457197,-173.15420879,0.00025579,2]
[390819793,1760171457207,-77.78863759,0.00027397,9]
[390819794,1760171457218,-422.21136241,0.00027397,9]
[390819795,1760171457227,-19.39665769,0.00027397,9]
[390819796,1760171457238,-480.60334231,0.00027397,9]
[390819797,1760171457248,-500.0,0.00027397,9]
[390819798,1760171457257,-500.0,0.00027397,9]
[390819799,1760171457266,-500.0,0.00027397,9]
[390819800,1760171457276,-500.0,0.00027397,9]
[390819801,1760171457286,-500.0,0.00027397,9]
[390819802,1760171457295,-500.0,0.00027397,9]
[390819803,1760171457304,-500.0,0.00027397,9]
[390819804,1760171457313,-155.06,0.00027397,9]
[390819805,1760171457322,-500.0,0.00027397,9]
[390819806,1760171457332,-500.0,0.00027397,9]
[390819807,1760171457341,-500.0,0.00027397,9]
[390819808,1760171457351,-500.0,0.00027397,9]
[390819809,1760171457360,-500.0,0.00027397,9]
[390819810,1760171457370,-500.0,0.00027397,9]
[390819811,1760171457380,-500.0,0.00027397,9]
[390819812,1760171457390,-500.0,0.00027397,9]
[390819813,1760171457400,-500.0,0.00027397,9]
[390819814,1760171457409,-382.9108365,0.00027397,9]
[390819815,1760171457418,-800.0,0.0002956,2]
[390819816,1760171457436,-394.87959301,0.00029583,2]
[390819817,1760171457445,-33585.98420923,0.0002975,20]
[390819818,1760171457467,-464.996769,0.00027387,10]
[390819819,1760171457479,-239.733231,0.00027387,10]
[390819820,1760171457492,-62.266769,0.00027397,9]
[390819821,1760171457505,-437.733231,0.00027397,9]
[390819822,1760171457514,-2176.28213215,0.0002975,20]
[390819824,1760171646090,3004.38695201,0.00017,10]
[390819825,1760171716347,24064.97,0.00029899,80]
[390819830,1760171891119,-500.0,0.000171,2]
[390819831,1760171891141,-150.0,0.000171,2]
[390819832,1760171891161,-172.5,0.000177,2]
[390819833,1760171891182,-150.0,0.00018092,2]
[390819834,1760171891202,-160.55543819,0.00018196,2]
[390819835,1760171891224,-195.0,0.000183,2]
[390819836,1760171891245,-500.0,0.0001845,2]
[390819837,1760171891266,-500.0,0.0001845,2]
[390819838,1760171891286,-161.83787191,0.000187,2]
[390819839,1760171891308,-217.5,0.000189,2]
[390819840,1760171891328,-150.0,0.00018954,2]
[390819841,1760171891350,-501.50198284,0.00018998,2]
[390819842,1760171891547,-500.0,0.00018998,2]
[390819843,1760171891568,-240.0,0.000195,2]
[390819844,1760171891588,-194.8,0.00019816,2]
[390819845,1760171891608,-262.5,0.000201,2]
[390819846,1760171891630,-153.57003234,0.00020577,2]
[390819847,1760171901777,-50000.0,0.00020677,2]
[390819848,1760171901801,-259.74,0.00020677,2]
[390819849,1760171901824,-285.0,0.000207,2]
[390819857,1760171918310,150.0,0.00017813,2]
[390819858,1760171918711,150.0,0.00018662,2]
[390819859,1760171919146,165.99,0.0001951,2]
[390819860,1760171920085,221.33,0.00020358,2]
[390819861,1760171926081,-300.0,0.0002109,20]
[390819862,1760171926102,-300.0,0.0002109,20]
[390819863,1760171926123,-300.0,0.0002109,20]
[390819864,1760171926144,-300.0,0.0002109,20]
[390819865,1760171926164,-300.0,0.0002109,20]
[390819866,1760171926185,-300.0,0.0002109,20]
[390819867,1760171926205,-300.0,0.0002109,20]
[390819868,1760171926227,-300.0,0.0002109,20]
[390819869,1760171926248,-300.0,0.0002109,20]
[390819870,1760171926268,-300.0,0.0002109,20]
[390819871,1760171926288,-300.0,0.0002109,20]
[390819872,1760171926309,-300.0,0.0002109,20]
[390819873,1760171926331,-300.0,0.0002109,20]
[390819874,1760171926351,-300.0,0.0002109,20]
[390819875,1760171926371,-300.0,0.0002109,20]
[390819876,1760171926392,-600.0,0.0002109,20]
[390819877,1760171926411,-276.66,0.00021206,2]
[390819878,1760171926433,-307.5,0.000213,2]
[390819879,1760171926452,-500.0,0.00021511,2]
[390819880,1760171926470,-500.0,0.00021511,2]
[390819881,1760171926489,-500.0,0.00021511,2]
[390819882,1760171926509,-208.0,0.00021808,5]
[390819883,1760171926530,-1200.0,0.00021899,2]
[390819884,1760171926550,-1200.0,0.00021899,2]
[390819885,1760171926574,-300.0,0.000219,2]
[390819886,1760171926594,-300.0,0.000219,2]
[390819887,1760171926613,-300.0,0.000219,2]
[390819888,1760171926633,-300.0,0.000219,2]
[390819889,1760171926655,-221.73859974,0.000219,2]
[390819890,1760171933835,-331.99,0.00022055,2]
[390819891,1760171933861,-1000.0,0.00022059,2]
[390819892,1760171933882,-1000.0,0.00022059,2]
[390819893,1760171933904,-1000.0,0.00022059,2]
[390819894,1760171933927,-387.32,0.00022903,2]
[390819895,1760171943296,502.38443124,0.00021511,2]
[390819896,1760171943603,612.94982994,0.00021511,2]
[390819897,1760171943662,501.33344174,0.00021511,2]
[390819898,1760171945797,-720.0,0.00023198,20]
[390819899,1760171945820,-250.0,0.00023514,2]
[390819900,1760171945844,-442.65,0.00023751,2]
[390819901,1760171945864,-1680.0,0.00023799,2]
[390819902,1760171945884,-420.0,0.00023801,2]
[390819903,1760171945907,-154.0,0.00023801,2]
[390819904,1760171945928,-420.0,0.00023801,2]
[390819905,1760171945947,-160.0,0.00023825,2]
[390819906,1760171945967,-160.0,0.00023825,2]
[390819907,1760171945987,-160.0,0.00023825,2]
[390819908,1760171946008,-1680.0,0.00023911,2]
[390819909,1760171946029,-300.0,0.00023979,2]
[390819910,1760171946050,-2609.37557469,0.0002398,2]
[390819911,1760171946714,500.0,0.00021511,2]
[390819912,1760171946767,1000.0,0.00022059,2]
[390819913,1760171947232,500.0,0.00021511,2]
[390819914,1760171949777,1000.0,0.00022059,2]
[390819915,1760171954344,-497.98,0.00024599,2]
[390819917,1760171966054,-168.0,0.00025385,2]
[390819918,1760171966076,-553.32,0.00025448,2]
[390819919,1760171966102,-168.0,0.00025511,2]
[390819920,1760171966124,-864.0,0.00025518,20]
[390819921,1760171966146,-168.0,0.00025651,7]
[390819922,1760171966170,-168.0,0.00025663,2]
[390819923,1760171966193,-168.0,0.00025744,2]
[390819924,1760171966217,-168.0,0.00025918,2]
[390819926,1760171972228,-420.0,0.00026005,2]
[390819927,1760171972250,-480.0,0.00026108,2]
[390819928,1760171972273,-168.0,0.00026233,2]
[390819929,1760171972298,-168.0,0.00026427,2]
[390819930,1760171972323,-168.0,0.00026443,2]
[390819931,1760171972345,-168.0,0.00026566,2]
[390819932,1760171972370,-499.999999,0.000266,3]
[390819933,1760171972392,-166.602,0.00026699,14]
[390819934,1760171972414,-500.0,0.00026773,2]
[390819935,1760171972441,-500.0,0.00026773,2]
[390819936,1760171972466,-168.0,0.00026842,2]
[390819937,1760171972491,-168.0,0.00026914,7]
[390819938,1760171976130,298.08050243,0.00023822,2]
[390819939,1760171984379,-978.6,0.00027123,10]
[390819940,1760171984400,-500.0,0.00027146,2]
[390819941,1760171984422,-500.0,0.00027146,2]
[390819942,1760171984444,-88884.0214578,0.00027155,2]
[390819943,1760171984469,-168.0,0.00027165,2]
[390819944,1760171984493,-587.27,0.0002717,10]
[390819945,1760171984515,-500.0,0.00027173,2]
[390819946,1760171984537,-500.0,0.00027173,2]
[390819947,1760171984560,-500.0,0.00027173,2]
[390819948,1760171984581,-115139.39883814,0.0002718,2]
[390819949,1760172035219,200.0,0.00027,120]
[390819966,1760172260308,1723.98105156,0.00027,120]
[390819968,1760172301748,3000.0,0.0002977,120]
[390819980,1760172464212,-150.0,0.00018636,2]
[390819981,1760172464233,-160.0,0.000188,2]
[390819982,1760172464254,-260.0,0.00019348,2]
[390819983,1760172464275,-150.0,0.00019524,2]
[390819984,1760172464299,-150.0,0.00020411,2]
[390819985,1760172464319,-150.0,0.00021299,2]
[390819986,1760172464340,-150.0,0.00022186,2]
[390819987,1760172464361,-150.0,0.00023073,2]
[390819988,1760172464382,-217.660197,0.00023496,2]
[390819989,1760172464402,-150.0,0.00023961,2]
[390819992,1760172474782,-3237.07031794,0.0002398,2]
[390819993,1760172499160,-1687.660197,0.0002398,2]
[390819994,1760172499181,-150.0,0.0002398,2]
[390819995,1760172499201,-160.0,0.0002398,2]
[390819996,1760172499221,-298.08050243,0.0002398,2]
[390819997,1760172499241,-2609.37557469,0.00023987,2]
[390819998,1760172499260,-160.0,0.00023987,2]
[390819999,1760172499280,-160.0,0.00024,2]
[390820000,1760172499301,-184.08815326,0.00024,2]
[390820001,1760172503239,174.282203,0.00025369,120]
[390820009,1760172579870,-168.0099599,0.000242,2]
[390820011,1760172611865,-3861.04243163,0.00024142,2]
[390820012,1760172611886,-16.07819336,0.000242,2]
[390820013,1760172620795,208.0,0.00021836,5]
[390820051,1760172632780,-184.08815326,0.000245,2]
[390820053,1760172632791,-172.5,0.0002458,2]
[390820055,1760172632800,-179.41833743,0.000246,2]
[390820057,1760172632809,-184.08815326,0.000247,2]
[390820059,1760172632818,-1000.0,0.00025139,30]
[390820061,1760172632827,-195.0,0.0002518,2]
[390820063,1760172632836,-174.282203,0.00025369,2]
[390820065,1760172632845,-2260.62315305,0.00025369,2]
[390820175,1760172638651,-348.75242164,0.00025369,2]
[390820178,1760172638661,-292.0,0.00025486,2]
[390820179,1760172638671,-300.0,0.0002554,2]
[390820181,1760172638682,-2986.0,0.00025541,2]
[390820183,1760172638692,-292.0,0.00025619,2]
[390820185,1760172638701,-300.0,0.0002565,20]
[390820187,1760172638711,-300.0,0.0002565,20]
[390820190,1760172638721,-300.0,0.0002565,20]
[390820191,1760172638731,-300.0,0.0002565,20]
[390820193,1760172638740,-300.0,0.0002565,20]
[390820195,1760172638751,-300.0,0.0002565,20]
[390820197,1760172638760,-300.0,0.0002565,20]
[390820199,1760172638770,-300.0,0.0002565,20]
[390820201,1760172638780,-300.0,0.0002565,20]
[390820203,1760172638790,-300.0,0.0002565,20]
[390820205,1760172638799,-300.0,0.0002565,20]
[390820206,1760172638808,-300.0,0.0002565,20]
[390820208,1760172638822,-300.0,0.0002565,20]
[390820209,1760172638832,-300.0,0.0002565,20]
[390820210,1760172638841,-300.0,0.0002565,20]
[390820211,1760172638851,-262.556493,0.0002565,2]
[390820212,1760172638864,-292.0,0.00025689,2]
[390820213,1760172638873,-500.0,0.000257,2]
[390820214,1760172638882,-500.0,0.000257,2]
[390820215,1760172638891,-500.0,0.000257,2]
[390820216,1760172638902,-500.0,0.000257,2]
[390820217,1760172638912,-500.0,0.000257,2]
[390820218,1760172638921,-500.0,0.000257,2]
[390820219,1760172638931,-292.0,0.00025745,2]
[390820220,1760172638941,-217.5,0.0002578,2]
[390820221,1760172638952,-294.0,0.00025842,2]
[390820222,1760172638962,-292.0,0.00025872,2]
[390820223,1760172638971,-242.43165936,0.00026248,2]
[390820224,1760172638982,-361.57439764,0.00026248,2]
[390820225,1760172638994,-395.993943,0.00026248,2]
[390820226,1760172639003,-230.41827492,0.00026248,2]
[390820227,1760172639014,-760.0,0.00026248,2]
[390820228,1760172639025,-9.58172508,0.00026248,2]
[390820229,1760172639034,-504.1325774,0.00026248,2]
[390820230,1760172639043,-1000.0,0.00026248,2]
[390820231,1760172639052,-1014.57367624,0.00026248,2]
[390820232,1760172639061,-380.52601766,0.00026248,2]
[390820233,1760172639070,-250.17464249,0.00026331,5]
[390820234,1760172639079,-240.0,0.0002638,2]
[390820235,1760172639088,-292.0,0.00026398,2]
[390820236,1760172639097,-16747.42925438,0.0002678,2]
[390820237,1760172639106,-250.0,0.0002678,2]
[390820238,1760172639115,-250.0,0.0002678,2]
[390820239,1760172639124,-250.0,0.0002678,2]
[390820240,1760172639134,-250.0,0.0002678,2]
[390820241,1760172639143,-247.99401777,0.00026796,2]
[390820242,1760172639152,-1500.0,0.00026796,2]
[390820243,1760172639161,-500.0,0.00026796,2]
[390820244,1760172639171,-292.0,0.00026844,7]
[390820245,1760172639182,-292.0,0.00026845,2]
[390820246,1760172639191,-292.0,0.00026856,7]
[390820247,1760172639201,-160.0,0.00026869,3]
[390820248,1760172639210,-292.0,0.00026953,7]
[390820249,1760172639219,-587.27,0.0002697,10]
[390820250,1760172639228,-489.39,0.0002697,10]
[390820251,1760172639237,-78682.850443,0.0002698,2]
[390820252,1760172639246,-7795.54,0.00026989,2]
[390820253,1760172639255,-100000.0,0.0002699,2]
[390820254,1760172639264,-500.0,0.0002699,2]
[390820256,1760172639273,-2457.75487349,0.00026999,2]
[390820258,1760172639283,-500.0,0.00027073,2]
[390820260,1760172639292,-500.0,0.00027073,2]
[390820262,1760172639301,-500.0,0.00027073,2]
[390820263,1760172639311,-500.0,0.00027073,2]
[390820265,1760172639320,-500.0,0.00027073,2]
[390820267,1760172639329,-500.0,0.00027073,2]
[390820269,1760172639338,-500.0,0.00027073,2]
[390820271,1760172639347,-2457.75487349,0.00027074,2]
[390820273,1760172639357,-291.82,0.0002708,3]
[390820275,1760172639365,-875.5,0.0002708,3]
[390820277,1760172639375,-166.602,0.0002709,15]
[390820278,1760172639383,-236048.551329,0.0002709,2]
[390820279,1760172639393,-4638.91036731,0.0002709,3]
[390820281,1760172639402,-94592.02561165,0.000271,3]
[390820283,1760172639411,-2609.37557469,0.000271,3]
[390820285,1760172639421,-500.0,0.000271,5]
[390820287,1760172639432,-2986.0,0.00027106,7]
[390820289,1760172639441,-1000.0,0.00027123,10]
[390820290,1760172639451,-957.2,0.00027123,10]
[390820291,1760172639460,-2457.75487349,0.00027148,2]
[390820293,1760172639469,-78682.850443,0.0002717,2]
[390820295,1760172639478,-500.0,0.00027173,2]
[390820297,1760172639487,-500.0,0.00027173,2]
[390820299,1760172639496,-506.74987059,0.00027173,2]
[390820301,1760172639506,-500.0,0.00027173,2]
[390820303,1760172639516,-500.0,0.00027173,2]
[390820305,1760172639526,-500.0,0.00027173,2]
[390820307,1760172639535,-361.69385993,0.00027173,2]
[390820309,1760172639545,-501.37593705,0.00027173,2]
[390820311,1760172639554,-500.0,0.00027173,2]
[390820313,1760172639563,-500.0,0.00027173,2]
[390820315,1760172639572,-500.0,0.00027173,2]
[390820316,1760172639581,-500.0,0.00027173,2]
[390820317,1760172639590,-500.0,0.00027173,2]
[390820318,1760172639599,-500.0,0.00027173,2]
[390820319,1760172639609,-169.1166714,0.00027173,2]
[390820320,1760172639618,-503.59739427,0.00027173,2]
[390820321,1760172639627,-501.83601774,0.00027173,2]
[390820322,1760172639636,-500.0,0.00027173,2]
[390820323,1760172639645,-500.1912246,0.00027173,2]
[390820324,1760172639654,-500.0,0.00027173,2]
[390820325,1760172639663,-500.0,0.00027173,2]
[390820326,1760172639672,-500.0,0.00027173,2]
[390820327,1760172639682,-500.0,0.00027173,2]
[390820328,1760172639692,-500.0,0.00027173,2]
[390820329,1760172639701,-500.0,0.00027173,2]
[390820330,1760172639711,-500.0,0.00027173,2]
[390820331,1760172639853,-652.17564162,0.00027176,2]
[390820332,1760172639898,-2606.09386393,0.00027176,2]
[390820333,1760172639908,-522.14529424,0.00027176,2]
[390820334,1760172639919,-2088.58117697,0.00027176,2]
[390820335,1760172639931,-4694.60834052,0.00027176,2]
[390820336,1760172639941,-500.0,0.00027189,2]
[390820337,1760172639951,-400.0,0.00027189,2]
[390820338,1760172639960,-370000.0,0.0002719,2]
[390820339,1760172639970,-500.0,0.0002719,5]
[390820340,1760172639979,-168.0,0.00027195,7]
[390820341,1760172639988,-2457.75487349,0.00027223,2]
[390820342,1760172639998,-294.0,0.00027234,2]
[390820343,1760172640008,-168.0,0.00027262,7]
[390820344,1760172640018,-500.0,0.00027264,2]
[390820345,1760172640027,-2457.75487349,0.00027297,2]
[390820346,1760172640038,-3310.35449083,0.00027297,2]
[390820347,1760172640049,-294.0,0.0002732,2]